bitfinex/quotes_SOLUSD_20251208
["timestamp","ask_amount","ask_price","bid_price","bid_amount"]
[1765201024538,8.56,138.68,138.65,9.89135934]
[1765201024921,0.66,138.67,138.65,9.89135934]
[1765201026427,8.56,138.68,138.65,27.92237268]
[1765201026820,8.56,138.68,138.65,26.95542189]
[1765201027230,7.9,138.68,138.65,26.95542189]
[1765201027442,0.66,138.67,138.65,26.95542189]
[1765201028425,0.66,138.67,138.66,1.7121381]
[1765201029445,0.1,138.69,138.67,7.21136511]
[1765201029648,0.1,138.69,138.68,2.4221381]
[1765201030720,0.1,138.69,138.68,34.75179213]
[1765201032640,0.76,138.69,138.68,25.23184721]
[1765201032859,0.76,138.69,138.68,7.21084511]
[1765201033446,0.1,138.69,138.68,8.92298321]
[1765201034755,0.76,138.69,138.68,7.21084511]
[1765201038936,0.1,138.69,138.68,8.92298321]
[1765201039334,0.1,138.69,138.68,9.63298321]
[1765201040026,0.1,138.69,138.68,25.94184721]
[1765201040350,0.1,138.71,138.7,25.11880892]
[1765201040530,0.1,138.71,138.7,35.44094702]
[1765201040731,0.1,138.71,138.7,42.65075235]
[1765201042135,0.72,138.76,138.7,96.72429235]
[1765201042338,0.72,138.76,138.74,1.7121381]
[1765201042544,0.72,138.76,138.73,1.7121381]
[1765201042850,0.72,138.76,138.72,1.7121381]
[1765201043248,0.72,138.78,138.75,1.7121381]
[1765201043432,0.72,138.78,138.77,1.7121381]
[1765201043831,0.72,138.78,138.76,1.7121381]
[1765201044245,0.72,138.78,138.77,7.20616848]
[1765201044443,0.72,138.78,138.75,16.308864]
[1765201044653,0.72,138.78,138.76,7.20661658]
[1765201044850,9.63784661,138.78,138.73,7.2081951]
[1765201045056,17.53784661,138.78,138.73,7.2081951]
[1765201045235,0.72,138.77,138.73,7.2081951]
[1765201045437,1.7121381,138.76,138.67,62.87588726]
[1765201045637,0.72,138.77,138.69,1.7121381]
[1765201045638,1.7121381,138.75,138.69,1.7121381]
[1765201046045,0.72,138.74,138.69,1.7121381]
[1765201046347,0.72,138.74,138.7,7.20948189]
[1765201050554,0.72,138.74,138.71,1.7121381]
[1765201050946,0.72,138.74,138.7,26.94613332]
[1765201051262,0.72,138.74,138.7,7.20948189]
[1765201051463,0.72,138.74,138.7,8.92161999]
[1765201052463,0.72,138.74,138.7,7.20948189]
[1765201053239,9.63996035,138.74,138.7,7.20948189]
[1765201053755,0.72,138.73,138.69,7.2101014]
[1765201055069,0.72,138.73,138.68,43.25814657]
[1765201056451,1.7121381,138.72,138.68,25.23714447]
[1765201056651,17.54050451,138.73,138.68,7.21084511]
[1765201056855,2.4321381,138.72,138.67,7.21116348]
[1765201057168,7.20928555,138.71,138.67,7.21116348]
[1765201057367,0.72,138.71,138.67,7.21116348]
[1765201057569,0.72,138.7,138.67,8.92330158]
[1765201059073,7.92995721,138.7,138.66,7.21166138]
[1765201059249,9.64209531,138.7,138.66,7.21166138]
[1765201059448,0.72,138.69,138.66,7.21166138]
[1765201059957,0.72,138.71,138.68,1.7121381]
[1765201060655,0.72,138.71,138.67,1.7121381]
[1765201061242,0.72,138.71,138.68,7.21084511]
[1765201061443,0.72,138.71,138.67,16.308864]
[1765201061672,2.4321381,138.71,138.66,18.02971296]
[1765201061966,0.72,138.7,138.66,18.02971296]
[1765201062277,0.72,138.7,138.67,26.95182014]
[1765201062482,0.72,138.72,138.67,27.63182014]
[1765201062660,0.72,138.72,138.68,1.7121381]
[1765201063446,0.72,138.72,138.69,7.21032518]
[1765201064058,9.64090403,138.72,138.68,7.21062644]
[1765201064451,0.72,138.71,138.68,7.21062644]
[1765201065374,0.72,138.71,138.67,26.95191598]
[1765201067242,0.72,138.71,138.67,25.23977788]
[1765201067442,7.92928767,138.71,138.67,7.21136511]
[1765201067647,0.72,138.7,138.67,7.21136511]
[1765201068760,7.9299953,138.7,138.66,7.21168445]
[1765201069260,0.72,138.69,138.66,7.21168445]
[1765201072049,0.72,138.69,138.65,7.21240533]
[1765201072546,17.5424668,138.69,138.65,7.21240533]
[1765201072858,0.67,138.68,138.64,7.21268902]
[1765201073961,0.67,138.68,138.64,26.95714102]
[1765201074354,0.67,138.68,138.65,0.72]
[1765201074555,8.92157679,138.71,138.65,2.4321381]
[1765201074746,0.67,138.68,138.65,2.4321381]
[1765201076274,0.67,138.68,138.66,7.21188518]
[1765201077664,0.67,138.69,138.66,7.93188518]
[1765201077851,0.67,138.69,138.66,7.21188518]
[1765201079975,0.7,138.69,138.66,7.91188518]
[1765201080677,7.9,138.71,138.66,26.95373624]
[1765201080972,0.7,138.7,138.67,0.7]
[1765201081163,0.7,138.7,138.66,26.95373624]
[1765201081362,0.7,138.7,138.66,27.65373624]
[1765201081574,0.7,138.7,138.67,0.7]
[1765201081785,0.7,138.7,138.66,26.95373624]
[1765201081977,0.7,138.7,138.66,25.94159814]
[1765201082183,0.7,138.7,138.66,27.65373624]
[1765201083761,0.7,138.7,138.65,16.308864]
[1765201083762,9.62205524,138.7,138.65,23.5210347]
[1765201083955,1.7121381,138.69,138.65,7.2121707]
[1765201084160,2.4121381,138.69,138.64,7.21270031]
[1765201084376,2.4121381,138.69,138.62,36.75513088]
[1765201084377,2.4121381,138.68,138.63,7.21320878]
[1765201084592,9.6121381,138.67,138.63,7.21320878]
[1765201084754,10.3121381,138.67,138.6,24.21450087]
[1765201084957,0.7,138.66,138.6,38.81122677]
[1765201085278,0.7,138.66,138.61,1.7121381]
[1765201085480,7.91217097,138.66,138.62,7.21391595]
[1765201085873,0.7,138.65,138.62,7.21391595]
[1765201089178,7.9125219,138.65,138.62,7.21391595]
[1765201089581,0.7,138.64,138.62,7.21391595]
[1765201091883,0.7,138.64,138.61,7.21425062]
[1765201092095,7.91315598,138.64,138.6,3.76510792]
[1765201092294,8.6,138.63,138.6,7.21499253]
[1765201092474,8.6,138.63,138.56,11.6793337]
[1765201092787,0.7,138.62,138.57,2.67696929]
[1765201092959,0.7,138.62,138.58,7.21568977]
[1765201093973,7.91402859,138.62,138.58,7.21568977]
[1765201094173,0.7,138.61,138.58,7.21568977]
[1765201095863,10.59147524,138.61,138.57,7.21636182]
[1765201096180,2.67696929,138.6,138.56,7.21704953]
[1765201096386,3.37696929,138.6,138.56,7.21704953]
[1765201096584,0.7,138.59,138.56,7.21704953]
[1765201096791,8.6,138.59,138.56,7.21704953]
[1765201097163,0.7,138.58,138.56,7.21704953]
[1765201099792,8.6,138.59,138.56,7.21704953]
[1765201099975,0.7,138.59,138.56,7.21704953]
[1765201102273,20.70962079,138.64,138.58,2.67696929]
[1765201102492,9.89244785,138.67,138.63,2.67696929]
[1765201102682,0.66,138.65,138.6,2.67696929]
[1765201103200,0.66,138.65,138.6,3.36696929]
[1765201103773,0.66,138.65,138.61,7.21448668]
[1765201104201,0.66,138.65,138.61,9.89145597]
[1765201105201,0.66,138.67,138.64,2.67696929]
[1765201105902,0.66,138.67,138.64,7.21271353]
[1765201106704,7.87139658,138.67,138.64,7.21271353]
[1765201107709,0.66,138.67,138.64,7.21271353]
[1765201109909,7.87139193,138.67,138.62,7.21363332]
[1765201110308,3.33696929,138.66,138.6,64.57696929]
[1765201110513,7.9,138.65,138.59,24.33214668]
[1765201110722,8.56,138.65,138.6,7.2147181]
[1765201111016,0.66,138.64,138.6,7.2147181]
[1765201111322,0.66,138.64,138.59,2.67696929]
[1765201111323,0.66,138.64,138.59,7.21531976]
[1765201111625,3.33696929,138.64,138.58,7.21584675]
[1765201111834,7.21344586,138.63,138.58,7.21584675]
[1765201112033,7.9,138.62,138.58,7.21584675]
[1765201112194,8.56,138.62,138.58,7.21584675]
[1765201112516,0.66,138.61,138.58,7.21584675]
[1765201113020,0.66,138.61,138.57,7.21639105]
[1765201113226,3.33696929,138.61,138.56,7.21690379]
[1765201113807,0.66,138.6,138.56,7.21690379]
[1765201113994,7.9,138.59,138.56,7.21690379]
[1765201114388,8.56,138.59,138.56,7.21690379]
[1765201115515,8.56,138.59,138.56,7.90690379]
[1765201115720,0.66,138.58,138.55,0.2]
[1765201116133,10.55310484,138.58,138.55,0.2]
[1765201116422,0.66,138.57,138.55,0.2]
[1765201119233,7.9,138.56,138.55,0.2]
[1765201119528,8.56,138.56,138.55,0.2]
[1765201119835,11.23696929,138.56,138.55,0.2]
[1765201120000,8.80994492,138.55,138.48,16.308864]
[1765201120323,2.67696929,138.51,138.47,7.42161287]
[1765201120524,7.9,138.51,138.47,8.11161287]
[1765201120706,8.56,138.51,138.47,8.11161287]
[1765201120908,0.66,138.5,138.47,8.11161287]
[1765201122217,0.66,138.5,138.47,7.42161287]
[1765201122418,0.66,138.52,138.48,0.69]
[1765201122607,0.66,138.52,138.47,28.15303438]
[1765201122809,0.66,138.52,138.47,28.84303438]
[1765201123847,0.66,138.52,138.48,0.69]
[1765201125113,7.9,138.53,138.5,2.67696929]
[1765201125321,16.968864,138.55,138.5,3.36696929]
[1765201125617,7.9,138.53,138.5,3.36696929]
[1765201125822,7.9,138.53,138.51,0.69]
[1765201127039,7.9,138.53,138.52,7.21917412]
[1765201127647,7.9,138.56,138.52,10.58614341]
[1765201127812,8.56,138.56,138.52,10.58614341]
[1765201128638,7.9,138.56,138.53,3.36696929]
[1765201128839,7.9,138.56,138.54,2.67696929]
[1765201129142,7.9,138.56,138.55,2.67696929]
[1765201129514,7.9,138.56,138.54,10.58496995]
[1765201130531,0.66,138.55,138.52,2.67696929]
[1765201130738,0.66,138.55,138.52,9.89605791]
[1765201131122,7.87767421,138.55,138.51,9.89648123]
[1765201131327,0.66,138.54,138.5,9.89699781]
[1765201132414,0.66,138.54,138.51,7.21962396]
[1765201133826,7.8781538,138.54,138.51,7.21962396]
[1765201134036,7.8781538,138.54,138.5,2.67696929]
[1765201134345,0.66,138.53,138.49,9.89737896]
[1765201134520,0.66,138.53,138.49,10.60737896]
[1765201134721,0.66,138.53,138.49,7.93040967]
[1765201135245,0.66,138.53,138.5,7.21985673]
[1765201135938,7.8787604,138.53,138.49,7.93055107]
[1765201136541,0.66,138.52,138.48,7.22114235]
[1765201136869,0.66,138.52,138.47,7.42156137]
[1765201136870,11.23696929,138.52,138.47,7.42156137]
[1765201137223,11.23696929,138.52,138.47,8.13156137]
[1765201137224,0.66,138.51,138.47,8.13156137]
[1765201137442,7.9,138.52,138.48,7.22121491]
[1765201137642,8.56,138.52,138.49,7.22054257]
[1765201137844,7.9,138.52,138.49,7.93054257]
[1765201138724,8.57,138.52,138.49,7.93054257]
[1765201140447,7.9,138.52,138.49,7.93054257]
[1765201141547,8.57,138.52,138.49,7.93054257]
[1765201142437,7.9,138.52,138.49,7.93054257]
[1765201142639,8.57,138.52,138.49,7.93054257]
[1765201143345,8.57,138.52,138.49,7.22054257]
[1765201143855,8.57,138.52,138.49,7.91054257]
[1765201144454,15.11918823,138.52,138.48,7.22107858]
[1765201144656,0.67,138.51,138.47,7.42161213]
[1765201144862,0.67,138.51,138.47,0.2]
[1765201145238,7.9,138.5,138.47,0.2]
[1765201145639,8.57,138.5,138.47,0.2]
[1765201145844,8.57,138.5,138.47,7.42160999]
[1765201146637,0.67,138.49,138.47,7.42160999]
[1765201148730,7.89090023,138.49,138.47,0.2]
[1765201148954,0.67,138.48,138.47,0.2]
[1765201149536,7.9,138.49,138.47,0.2]
[1765201149731,7.9,138.49,138.47,8.11176121]
[1765201149962,10.28729314,138.51,138.47,8.11176121]
[1765201150138,0.67,138.5,138.47,8.11176121]
[1765201151443,7.89046436,138.5,138.47,0.2]
[1765201151645,9.6077575,138.5,138.47,0.2]
[1765201151954,0.67,138.49,138.47,0.2]
[1765201152673,7.9,138.48,138.47,0.2]
[1765201152877,16.83855252,138.48,138.47,0.2]
[1765201153033,17.50855252,138.48,138.47,0.2]
[1765201154256,7.89125938,138.48,138.47,0.2]
[1765201154458,8.57,138.48,138.47,0.2]
[1765201154764,7.9,138.48,138.47,0.2]
[1765201157760,7.9,138.48,138.47,8.11178089]
[1765201157953,0.67,138.51,138.47,8.11178089]
[1765201158269,8.57,138.51,138.48,0.69]
[1765201158441,8.57,138.51,138.47,8.11178089]
[1765201159063,7.9,138.51,138.48,0.69]
[1765201159269,7.9,138.51,138.49,7.22073795]
[1765201160675,8.57,138.51,138.49,7.22073795]
[1765201161246,8.59,138.51,138.48,7.22110903]
[1765201161556,0.69,138.5,138.48,7.22110903]
[1765201162767,0.69,138.5,138.47,7.42164406]
[1765201163075,7.91025109,138.5,138.47,0.2]
[1765201163257,9.62754423,138.5,138.47,0.2]
[1765201163461,1.71729314,138.48,138.47,0.2]
[1765201163673,7.9,138.48,138.47,0.2]
[1765201164060,7.22039172,138.5,138.47,0.2]
[1765201164390,7.9,138.49,138.47,0.2]
[1765201164544,8.59,138.49,138.47,0.2]
[1765201167271,8.59,138.49,138.47,7.4216285]
[1765201167476,7.9,138.49,138.47,8.1016285]
[1765201168285,0.69,138.48,138.47,0.2]
[1765201168467,8.59,138.49,138.47,7.42178089]
[1765201169576,8.59,138.49,138.47,0.2]
[1765201169762,0.69,138.48,138.47,0.2]
[1765201170269,2.40729314,138.48,138.47,0.2]
[1765201171067,9.62855252,138.48,138.47,0.2]
[1765201172683,7.91125938,138.48,138.47,0.2]
[1765201172872,9.62855252,138.48,138.47,0.2]
[1765201173675,7.9,138.49,138.47,0.2]
[1765201173676,15.12088045,138.49,138.47,0.2]
[1765201173873,0.69,138.48,138.47,0.2]
[1765201174979,7.91125938,138.48,138.47,0.2]
[1765201175902,9.62855252,138.48,138.47,0.2]
[1765201176189,7.91125938,138.48,138.47,0.2]
[1765201176987,9.62855252,138.48,138.47,0.2]
[1765201178788,7.91125938,138.48,138.47,0.2]
[1765201179288,15.81088904,138.49,138.47,0.2]
[1765201179866,7.9,138.49,138.47,8.10174906]
[1765201180395,7.9,138.49,138.48,0.68]
[1765201180567,7.9,138.51,138.48,0.68]
[1765201180768,7.9,138.51,138.48,7.9009906]
[1765201181073,0.69,138.55,138.49,1.71729314]
[1765201181286,7.9,138.53,138.49,2.39729314]
[1765201181495,7.9,138.53,138.5,0.68]
[1765201181682,0.69,138.57,138.51,1.71729314]
[1765201181988,7.9,138.56,138.52,2.39729314]
[1765201182292,7.9,138.56,138.52,0.68]
[1765201182496,7.9,138.56,138.53,0.68]
[1765201182989,7.9,138.56,138.53,7.89815081]
[1765201183192,15.80709827,138.56,138.53,0.68]
[1765201183783,2.40729314,138.55,138.49,0.68]
[1765201183989,2.40729314,138.55,138.49,16.988864]
[1765201184171,0.69,138.54,138.49,16.988864]
[1765201184492,2.40729314,138.54,138.49,16.988864]
[1765201184704,2.40729314,138.54,138.5,7.21991912]
[1765201184996,0.69,138.53,138.5,7.21991912]
[1765201185398,8.59,138.53,138.5,7.21991912]
[1765201185983,0.69,138.52,138.47,36.28019795]
[1765201186191,1.71729314,138.49,138.47,0.2]
[1765201186382,8.59,138.48,138.47,0.2]
[1765201189306,16.308864,138.54,138.47,0.2]
[1765201189604,16.308864,138.52,138.48,4.29411295]
[1765201189979,16.998864,138.52,138.48,4.97411295]
[1765201190606,24.21834526,138.52,138.48,12.19533887]
[1765201190809,24.21834526,138.52,138.48,7.90122592]
[1765201191189,4.29411295,138.5,138.47,0.2]
[1765201191515,8.6,138.49,138.47,0.2]
[1765201196109,7.9,138.49,138.47,8.11176504]
[1765201196606,7.9,138.52,138.48,4.98411295]
[1765201196804,7.9,138.52,138.49,4.29411295]
[1765201197016,7.9,138.52,138.49,4.98411295]
[1765201197899,7.9,138.52,138.49,12.20459062]
[1765201198101,7.9,138.52,138.49,7.91047767]
[1765201198514,7.9,138.52,138.5,0.69]
[1765201199419,8.56,138.52,138.49,7.22047767]
[1765201199813,8.56,138.52,138.47,0.2]
[1765201199814,15.11927257,138.52,138.47,0.2]
[1765201200017,12.17430313,138.51,138.47,0.2]
[1765201200314,4.29411295,138.48,138.47,0.2]
[1765201200514,12.19411295,138.48,138.47,0.2]
[1765201200815,12.85411295,138.48,138.47,0.2]
[1765201201298,21.66405787,138.48,138.47,0.2]
[1765201202294,45.19418125,138.48,138.47,0.2]
[1765201204698,72.35110321,138.48,138.42,0.2]
[1765201204895,4.29411295,138.46,138.42,0.2]
[1765201205093,8.56,138.47,138.42,8.13429278]
[1765201205094,29.16297695,138.47,138.42,8.13429278]
[1765201205407,24.868864,138.47,138.42,12.42840573]
[1765201205603,0.66,138.46,138.42,8.13429278]
[1765201205918,4.29411295,138.43,138.42,0.2]
[1765201206109,12.19411295,138.43,138.42,0.2]
[1765201206303,12.85411295,138.43,138.42,0.2]
[1765201206518,8.56,138.43,138.42,0.2]
[1765201206825,15.78386765,138.43,138.42,0.2]
[1765201209097,22.76738485,138.43,138.42,0.2]
[1765201212530,15.12386765,138.43,138.42,0.2]
[1765201213032,7.9,138.43,138.42,0.2]
[1765201213217,7.9,138.43,138.42,0.91]
[1765201213413,7.9,138.43,138.42,0.2]
[1765201213616,7.9,138.43,138.42,0.91]
[1765201215048,7.9,138.43,138.42,8.13438953]
[1765201215753,7.92,138.44,138.42,0.2]
[1765201216044,15.5635172,138.44,138.42,0.2]
[1765201216244,7.6435172,138.43,138.42,0.2]
[1765201217426,0.66,138.43,138.42,0.2]
[1765201217750,7.88386765,138.43,138.42,0.2]
[1765201220462,14.86738485,138.43,138.42,0.2]
[1765201221258,7.88386765,138.43,138.42,0.2]
[1765201221572,7.22386765,138.43,138.42,0.2]
[1765201224856,7.92,138.44,138.42,0.91]
[1765201225063,15.14353581,138.44,138.42,0.2]
[1765201225753,15.14353581,138.44,138.42,0.91]
[1765201225961,15.14353581,138.44,138.42,0.2]
[1765201226877,15.84353581,138.44,138.42,0.2]
[1765201227054,7.6835172,138.43,138.42,0.2]
[1765201227256,16.49346212,138.43,138.42,0.2]
[1765201228053,22.82705301,138.44,138.42,0.2]
[1765201228400,0.7,138.43,138.42,0.2]
[1765201228985,23.71732977,138.43,138.42,0.2]
[1765201229345,6.9835172,138.39,138.37,0.2]
[1765201229544,7.92,138.38,138.37,0.2]
[1765201229739,16.308864,138.4,138.37,7.1835172]
[1765201229740,7.92,138.4,138.37,7.1835172]
[1765201230053,7.92,138.4,138.37,0.2]
[1765201230247,8.62,138.4,138.37,0.2]
[1765201230646,7.92,138.4,138.37,0.91]
[1765201230871,7.92,138.4,138.37,8.1368852]
[1765201231168,7.92,138.4,138.38,0.71]
[1765201231671,15.14549687,138.4,138.37,0.2]
[1765201231861,15.14549687,138.4,138.37,0.91]
[1765201232056,15.84549687,138.4,138.37,0.91]
[1765201232254,23.2923812,138.38,138.33,0.2]
[1765201232474,24.228864,138.37,138.33,0.2]
[1765201232678,6.9835172,138.34,138.33,0.2]
[1765201232985,6.9835172,138.34,138.29,0.71]
[1765201232986,7.22908985,138.33,138.28,0.71]
[1765201233276,7.92,138.34,138.29,0.71]
[1765201233443,7.92,138.34,138.31,6.9835172]
[1765201233649,15.14863341,138.34,138.29,7.6935172]
[1765201234164,0.7,138.33,138.3,0.71]
[1765201234359,6.9835172,138.33,138.29,0.71]
[1765201234567,15.6035172,138.34,138.29,0.71]
[1765201235069,22.83250396,138.34,138.29,0.71]
[1765201235268,0.7,138.33,138.29,0.71]
[1765201235872,7.92,138.34,138.29,14.92450601]
[1765201236244,16.308864,138.31,138.27,0.2]
[1765201236472,7.92,138.3,138.27,0.2]
[1765201236674,7.92,138.29,138.27,0.91]
[1765201236851,7.92,138.29,138.28,0.71]
[1765201237177,25.99999418,138.34,138.28,14.92518335]
[1765201237178,7.92,138.31,138.28,14.92518335]
[1765201237392,7.92,138.33,138.3,6.9835172]
[1765201237553,7.92,138.36,138.29,0.71]
[1765201237878,7.92647781,138.38,138.29,0.71]
[1765201237879,7.92,138.38,138.29,0.71]
[1765201238058,7.92,138.38,138.34,6.9835172]
[1765201238376,24.228864,138.38,138.33,6.9835172]
[1765201238578,24.228864,138.38,138.35,6.9835172]
[1765201238763,7.22439824,138.42,138.37,6.9835172]
[1765201238959,7.22543352,138.4,138.36,7.6935172]
[1765201239145,7.22543352,138.4,138.36,0.71]
[1765201239352,0.7,138.39,138.34,0.71]
[1765201239550,7.92,138.38,138.35,0.71]
[1765201240351,8.62,138.38,138.33,7.6935172]
[1765201240546,8.62,138.38,138.31,16.03956761]
[1765201240547,17.008864,138.37,138.32,7.6935172]
[1765201240977,17.008864,138.37,138.33,0.71]
[1765201241166,7.92,138.38,138.34,6.9835172]
[1765201241570,7.92,138.38,138.35,7.6935172]
[1765201241773,7.92,138.38,138.36,0.71]
[1765201242078,7.92,138.38,138.33,0.71]
[1765201242285,0.7,138.37,138.33,7.6935172]
[1765201242470,16.308864,138.39,138.36,6.9835172]
[1765201242674,7.92,138.41,138.38,6.9835172]
[1765201243182,7.92,138.41,138.39,0.71]
[1765201243555,15.1450759,138.41,138.33,18.07268793]
[1765201243754,15.1450759,138.41,138.36,0.71]
[1765201243984,15.1450759,138.41,138.36,14.92103553]
[1765201244159,15.8450759,138.41,138.36,14.92103553]
[1765201244355,7.92,138.41,138.37,14.92042908]
[1765201244581,7.92,138.41,138.38,14.20992833]
[1765201244776,7.92,138.41,138.38,14.91992833]
[1765201244985,15.14497914,138.41,138.36,14.21065232]
[1765201245166,15.14497914,138.41,138.38,0.71]
[1765201245370,15.84497914,138.41,138.37,0.71]
[1765201246081,7.6835172,138.4,138.32,25.11880892]
[1765201246269,15.14497914,138.41,138.33,0.71]
[1765201246270,7.6835172,138.39,138.33,0.71]
[1765201246466,8.62,138.38,138.33,0.71]
[1765201246667,7.92,138.38,138.33,7.93865522]
[1765201246991,15.6035172,138.38,138.33,7.93865522]
[1765201247162,15.6035172,138.38,138.34,0.71]
[1765201247563,22.83010869,138.38,138.34,0.71]
[1765201248166,7.92,138.38,138.34,14.92189024]
[1765201248573,7.92,138.38,138.35,0.71]
[1765201249078,14.2079126,138.42,138.35,16.50346212]
[1765201249279,7.92,138.41,138.36,0.71]
[1765201249500,14.9035172,138.41,138.36,0.71]
[1765201249868,14.9035172,138.41,138.37,7.22700007]
[1765201250263,7.92,138.41,138.38,0.71]
[1765201250866,39.87359434,138.49,138.39,6.9835172]
[1765201250867,15.6035172,138.45,138.39,6.9835172]
[1765201251065,7.92,138.45,138.39,6.9835172]
[1765201251276,7.92,138.45,138.4,7.6535172]
[1765201251570,7.92,138.45,138.41,0.67]
[1765201251774,7.92,138.45,138.41,7.6535172]
[1765201251987,7.92,138.45,138.42,7.22438953]
[1765201252180,7.92,138.45,138.42,7.89438953]
[1765201252380,6.9835172,138.47,138.43,0.67]
[1765201252579,8.59,138.47,138.43,0.67]
[1765201252784,7.92,138.47,138.43,0.67]
[1765201253703,15.14179733,138.47,138.43,0.67]
[1765201253912,15.14179733,138.47,138.41,7.89480779]
[1765201253913,7.6535172,138.46,138.41,7.89480779]
[1765201254197,7.22282412,138.45,138.41,0.67]
[1765201254410,7.22282412,138.45,138.42,0.67]
[1765201254574,15.14219328,138.47,138.42,0.67]
[1765201254899,7.92,138.47,138.42,7.6535172]
[1765201255267,7.92,138.47,138.43,0.67]
[1765201255711,30.51168732,138.52,138.46,6.9835172]
[1765201255878,7.92,138.51,138.46,6.9835172]
[1765201256208,7.92,138.51,138.47,7.89178089]
[1765201256577,7.92,138.51,138.48,0.67]
[1765201258081,7.92,138.51,138.49,7.22073795]
[1765201258273,7.92,138.51,138.5,0.67]
[1765201258695,7.92,138.51,138.49,7.22073795]
[1765201259073,7.92,138.54,138.5,0.71]
[1765201260068,7.92,138.54,138.51,7.21969532]
[1765201260484,7.92,138.54,138.51,7.92969532]
[1765201260884,7.92,138.54,138.52,0.71]
[1765201261478,7.92,138.54,138.52,7.6935172]
[1765201261795,0.1,138.55,138.54,8.80994492]
[1765201261985,0.1,138.55,138.54,16.50346212]
[1765201262177,0.1,138.55,138.51,18.75923832]
[1765201262393,0.1,138.55,138.52,0.71]
[1765201262595,0.1,138.55,138.5,16.308864]
[1765201262596,6.9835172,138.54,138.5,7.22001584]
[1765201262795,7.7035172,138.54,138.5,7.22001584]
[1765201262999,6.9835172,138.53,138.49,7.22072606]
[1765201263190,7.7035172,138.53,138.5,7.22012085]
[1765201263385,6.9835172,138.54,138.5,7.22012085]
[1765201263710,7.7035172,138.54,138.5,7.93012085]
[1765201264010,6.9835172,138.53,138.5,7.93012085]
[1765201264535,6.9835172,138.53,138.47,25.03743259]
[1765201264536,14.9222866,138.53,138.49,7.22055007]
[1765201264904,7.7035172,138.52,138.47,18.76391539]
[1765201265107,14.20243356,138.53,138.48,0.71]
[1765201265402,14.20243356,138.53,138.48,7.22107286]
[1765201265403,6.9835172,138.51,138.48,7.22107286]
[1765201265607,14.8835172,138.51,138.47,7.22168957]
[1765201265789,6.9835172,138.5,138.44,6.9835172]
[1765201265994,6.9835172,138.49,138.44,7.93334585]
[1765201266188,7.9,138.51,138.46,7.22230247]
[1765201266394,7.9,138.51,138.47,9.51994492]
[1765201266894,16.308864,138.52,138.48,7.6935172]
[1765201267086,16.308864,138.52,138.49,0.71]
[1765201267404,0.72,138.51,138.46,25.98805864]
[1765201267605,0.72,138.51,138.47,0.71]
[1765201267985,7.7035172,138.51,138.47,0.71]
[1765201268306,6.9835172,138.49,138.45,7.93264216]
[1765201268508,14.8835172,138.49,138.45,7.93264216]
[1765201268713,12.91388361,138.49,138.45,7.93264216]
[1765201268890,20.13464528,138.49,138.45,7.93264216]
[1765201269092,4.29388361,138.46,138.41,0.71]
[1765201269491,0.72,138.48,138.42,22.3539478]
[1765201269492,5.01388361,138.48,138.42,22.3539478]
[1765201269698,0.72,138.48,138.42,22.3539478]
[1765201270016,0.72,138.47,138.4,0.71]
[1765201270311,4.29388361,138.42,138.38,7.93632216]
[1765201270612,11.51837265,138.42,138.38,0.71]
[1765201270810,12.23837265,138.42,138.38,0.71]
[1765201271006,5.01388361,138.41,138.37,7.2266019]
[1765201271303,4.29388361,138.39,138.36,7.22713541]
[1765201271508,7.9,138.39,138.36,7.22713541]
[1765201271692,8.62,138.39,138.36,7.22713541]